fUSD/lending_fUSD_20250930
["ID","MTS","AMOUNT","RATE_DAILY","PERIOD"]
[388496217,1759217109567,150.0,0.00016077,2]
[388496218,1759217109636,150.0,0.00016275,2]
[388496219,1759217109677,150.0,0.00016474,2]
[388496220,1759217110295,150.0,0.00016077,2]
[388496221,1759217110354,150.0,0.00016275,2]
[388496222,1759217110427,150.0,0.00016474,2]
[388496224,1759217114636,150.0,0.00016077,2]
[388496225,1759217114678,150.0,0.00016523,2]
[388496226,1759217116656,150.0,0.00016077,2]
[388496227,1759217116698,150.0,0.00016434,2]
[388496228,1759217118405,150.0,0.00016077,2]
[388496229,1759217120298,150.61163106,0.00016077,2]
[388496230,1759217122728,150.0,0.00016077,2]
[388496231,1759217127033,150.0,0.00016077,2]
[388496232,1759217127562,150.41506059,0.00016077,2]
[388496233,1759217127629,280.84154609,0.00016077,2]
[388496234,1759217128762,150.0,0.00016077,2]
[388496235,1759217128817,150.0,0.00016275,2]
[388496236,1759217128884,150.0,0.00016474,2]
[388496237,1759217129463,150.0,0.00016077,2]
[388496238,1759217134327,150.0,0.00016077,2]
[388496239,1759217134390,150.0,0.00016374,2]
[388496240,1759217136087,150.0,0.00016077,2]
[388496241,1759217136155,150.0,0.00016255,2]
[388496242,1759217136223,150.0,0.00016434,2]
[388496243,1759217139251,-150.0,0.00016613,2]
[388496244,1759217159705,1080.99,0.00016342,2]
[388496246,1759217167689,152.9,8.164e-05,2]
[388496247,1759217167899,152.9,0.00010886,2]
[388496248,1759217168109,152.9,0.00013608,2]
[388496249,1759217168334,152.9,0.00016329,2]
[388496250,1759217178828,212.72022246,0.00016572,2]
[388496252,1759217215433,500.52589296,0.00015,14]
[388496254,1759217233741,221.27,0.0001635,2]
[388496256,1759217245597,2088.69,0.00016338,2]
[388496261,1759217305715,150.0,0.00016289,2]
[388496263,1759217318015,878.17901173,0.00015,2]
[388496264,1759217331346,890.64,0.00016306,2]
[388496266,1759217400029,18826.4,0.00016285,2]
[388496269,1759217431741,-1200.0,0.00016671,2]
[388496270,1759217431752,-150.0,0.00016672,2]
[388496271,1759217431761,-150.0,0.00016672,2]
[388496273,1759217431772,-150.0,0.00016672,2]
[388496275,1759217431781,-150.0,0.00016672,2]
[388496276,1759217431791,-150.0,0.00016672,2]
[388496277,1759217431801,-150.0,0.00016672,2]
[388496279,1759217431812,-150.0,0.00016672,2]
[388496281,1759217431821,-150.0,0.00016672,2]
[388496282,1759217431831,-300.0,0.00016677,2]
[388496283,1759217431840,-300.0,0.00016677,2]
[388496284,1759217431850,-300.0,0.00016677,2]
[388496285,1759217431860,-103.3980021,0.00016679,2]
[388496286,1759217431882,-1705.2711964,0.00016679,2]
[388496287,1759217431895,-191.3308015,0.00016679,2]
[388496288,1759217431905,-1000.0,0.00016679,2]
[388496289,1759217431915,-837.316,0.00016679,2]
[388496290,1759217431924,-1000.0,0.00016679,2]
[388496291,1759217431945,-698.886,0.00016679,2]
[388496292,1759217431963,-22142.03182339,0.00016679,2]
[388496293,1759217431973,-160.75,0.00016712,2]
[388496294,1759217431984,-393.82,0.00016737,2]
[388496295,1759217431996,-120.28852207,0.00016764,2]
[388496296,1759217432007,-150.0,0.00016771,2]
[388496297,1759217432017,-150.0,0.00016791,2]
[388496298,1759217432027,-150.0,0.00016791,2]
[388496299,1759217432036,-150.0,0.000168,2]
[388496300,1759217432046,-300.0,0.00016837,2]
[388496301,1759217432056,-200.0,0.00016838,2]
[388496302,1759217432067,-151.0,0.00016838,2]
[388496303,1759217432077,-151.0,0.00016838,2]
[388496304,1759217432086,-151.0,0.00016838,2]
[388496305,1759217432097,-151.0,0.00016838,2]
[388496306,1759217432106,-151.0,0.00016838,2]
[388496307,1759217432115,-151.0,0.00016838,2]
[388496308,1759217432125,-151.0,0.00016838,2]
[388496309,1759217432134,-151.0,0.00016838,2]
[388496310,1759217432144,-151.0,0.00016838,2]
[388496311,1759217432154,-151.0,0.00016838,2]
[388496312,1759217432164,-200.0,0.00016838,2]
[388496313,1759217432173,-151.0,0.00016838,2]
[388496314,1759217432183,-151.0,0.00016838,2]
[388496315,1759217432193,-151.0,0.00016838,2]
[388496316,1759217432203,-151.0,0.00016838,2]
[388496317,1759217432213,-175.9071572,0.00016838,2]
[388496318,1759217432223,-151.0,0.00016838,2]
[388496319,1759217432232,-151.0,0.00016838,2]
[388496320,1759217432243,-151.0,0.00016838,2]
[388496321,1759217432253,-151.0,0.00016838,2]
[388496323,1759217432263,-151.0,0.00016838,2]
[388496325,1759217432273,-151.0,0.00016838,2]
[388496327,1759217432284,-151.0,0.00016838,2]
[388496329,1759217432294,-151.0,0.00016838,2]
[388496331,1759217432303,-199.26053628,0.00016838,2]
[388496333,1759217432313,-151.0,0.00016838,2]
[388496335,1759217432323,-151.0,0.00016838,2]
[388496337,1759217432339,-151.0,0.00016838,2]
[388496338,1759217432349,-151.0,0.00016838,2]
[388496339,1759217432359,-151.0,0.00016838,2]
[388496340,1759217432369,-151.0,0.00016838,2]
[388496341,1759217432379,-151.0,0.00016838,2]
[388496342,1759217432389,-151.0,0.00016838,2]
[388496343,1759217432399,-151.0,0.00016838,2]
[388496344,1759217432409,-151.0,0.00016838,2]
[388496345,1759217432419,-151.0,0.00016838,2]
[388496346,1759217432430,-151.0,0.00016838,2]
[388496347,1759217432439,-151.0,0.00016838,2]
[388496348,1759217432449,-200.0,0.00016838,2]
[388496349,1759217432459,-500.0,0.00016838,2]
[388496350,1759217432469,-500.0,0.00016838,2]
[388496351,1759217432479,-500.0,0.00016838,2]
[388496352,1759217432490,-500.0,0.00016838,2]
[388496353,1759217432500,-432.59067889,0.00016838,2]
[388496354,1759217432510,-150.0,0.00016846,7]
[388496355,1759217432520,-5117.80413736,0.00016847,2]
[388496356,1759217432530,-23399.69,0.00016848,2]
[388496357,1759217432540,-607.75,0.00016866,2]
[388496358,1759217432552,-150.0,0.00016871,2]
[388496359,1759217432562,-150.0,0.00016871,2]
[388496360,1759217432572,-150.0,0.00016871,2]
[388496361,1759217432582,-150.0,0.00016871,2]
[388496362,1759217432592,-848.06,0.00016875,2]
[388496363,1759217432602,-205.71,0.00016905,2]
[388496364,1759217432612,-150.0,0.0001697,2]
[388496365,1759217432622,-150.0,0.0001697,2]
[388496366,1759217432633,-150.0,0.0001697,2]
[388496367,1759217432644,-150.0,0.0001697,2]
[388496368,1759217432653,-150.0,0.0001697,2]
[388496369,1759217432664,-324.96626499,0.00016992,2]
[388496370,1759217432674,-322.6107,0.00016992,2]
[388496371,1759217432684,-151.0,0.00016992,2]
[388496372,1759217432694,-250.0,0.00017,2]
[388496373,1759217432704,-505.6283213,0.00017067,2]
[388496374,1759217432714,-500.0,0.00017067,2]
[388496375,1759217432731,-500.0,0.00017067,2]
[388496376,1759217432741,-500.0,0.00017067,2]
[388496377,1759217432752,-501.64555354,0.00017067,2]
[388496378,1759217432762,-501.11394804,0.00017067,2]
[388496379,1759217432772,-163.20413421,0.00017067,2]
[388496380,1759217432782,-500.66950637,0.00017067,2]
[388496381,1759217432792,-501.36791258,0.00017067,2]
[388496382,1759217432802,-500.0,0.00017067,2]
[388496383,1759217432812,-484.6240089,0.00017067,2]
[388496384,1759217432822,-501.58191572,0.00017067,2]
[388496385,1759217432831,-513.30096924,0.00017067,2]
[388496386,1759217432841,-500.92577692,0.00017067,2]
[388496387,1759217432851,-500.24728439,0.00017067,2]
[388496388,1759217432861,-500.0,0.00017067,2]
[388496389,1759217432871,-500.0,0.00017067,2]
[388496390,1759217432880,-500.0,0.00017067,2]
[388496391,1759217432891,-500.0,0.00017067,2]
[388496392,1759217432902,-500.67187423,0.00017067,2]
[388496393,1759217432912,-503.25880873,0.00017067,2]
[388496394,1759217432922,-501.58145541,0.00017067,2]
[388496395,1759217432932,-150.0,0.00017069,2]
[388496396,1759217432942,-150.0,0.00017069,2]
[388496397,1759217432952,-150.0,0.00017069,2]
[388496398,1759217432962,-150.0,0.00017069,2]
[388496399,1759217432972,-150.0,0.00017148,2]
[388496400,1759217432982,-150.0,0.00017148,2]
[388496401,1759217432993,-221.27,0.00017168,2]
[388496402,1759217433006,-150.0,0.00017168,2]
[388496403,1759217433016,-500.0,0.00017267,2]
[388496404,1759217433026,-338.66220969,0.00017267,2]
[388496405,1759217433035,-500.0,0.00017267,2]
[388496406,1759217433045,-216.6355671,0.00017267,2]
[388496407,1759217433055,-500.0,0.00017267,2]
[388496408,1759217433065,-500.0,0.00017267,2]
[388496409,1759217433075,-500.0,0.00017267,2]
[388496410,1759217433084,-500.0,0.00017267,2]
[388496411,1759217433094,-500.0,0.00017267,2]
[388496412,1759217433104,-500.0,0.00017267,2]
[388496413,1759217433114,-500.0,0.00017267,2]
[388496414,1759217433129,-500.0,0.00017267,2]
[388496415,1759217433141,-500.0,0.00017267,2]
[388496416,1759217433151,-500.0,0.00017267,2]
[388496417,1759217433160,-500.0,0.00017267,2]
[388496418,1759217433170,-500.0,0.00017267,2]
[388496419,1759217433180,-500.0,0.00017267,2]
[388496420,1759217433190,-500.0,0.00017267,2]
[388496421,1759217433201,-500.0,0.00017267,2]
[388496422,1759217433210,-304.4033532,0.00017267,2]
[388496423,1759217433220,-500.0,0.00017267,2]
[388496424,1759217433230,-500.0,0.00017267,2]
[388496425,1759217433240,-500.0,0.00017267,2]
[388496426,1759217433250,-500.0,0.00017267,2]
[388496427,1759217433260,-500.0,0.00017267,2]
[388496428,1759217433270,-500.0,0.00017267,2]
[388496429,1759217433280,-500.0,0.00017267,2]
[388496430,1759217433290,-500.0,0.00017267,2]
[388496431,1759217433300,-500.0,0.00017267,2]
[388496432,1759217433310,-500.0,0.00017267,2]
[388496433,1759217433320,-500.0,0.00017267,2]
[388496434,1759217433330,-500.0,0.00017267,2]
[388496435,1759217433340,-500.0,0.00017267,2]
[388496436,1759217433350,-356.28241247,0.00017267,2]
[388496437,1759217433360,-500.0,0.00017267,2]
[388496438,1759217433370,-500.0,0.00017267,2]
[388496439,1759217433380,-500.0,0.00017267,2]
[388496440,1759217433392,-500.0,0.00017267,2]
[388496441,1759217433402,-500.0,0.00017267,2]
[388496442,1759217433412,-500.0,0.00017267,2]
[388496443,1759217433422,-500.0,0.00017267,2]
[388496444,1759217433432,-500.0,0.00017267,2]
[388496445,1759217433442,-500.0,0.00017267,2]
[388496446,1759217433452,-500.0,0.00017267,2]
[388496447,1759217433462,-500.0,0.00017267,2]
[388496448,1759217433472,-500.0,0.00017267,2]
[388496449,1759217433481,-500.0,0.00017267,2]
[388496450,1759217433491,-500.0,0.00017267,2]
[388496451,1759217433501,-500.0,0.00017267,2]
[388496452,1759217433514,-500.00000001,0.00017267,2]
[388496453,1759217433525,-500.0,0.00017267,2]
[388496454,1759217433534,-500.0,0.00017267,2]
[388496455,1759217433544,-500.0,0.00017267,2]
[388496456,1759217433554,-500.0,0.00017267,2]
[388496457,1759217433564,-500.0,0.00017267,2]
[388496458,1759217433574,-500.0,0.00017267,2]
[388496459,1759217433584,-500.0,0.00017267,2]
[388496460,1759217433595,-500.0,0.00017267,2]
[388496461,1759217433604,-500.0,0.00017267,2]
[388496462,1759217433614,-500.0,0.00017267,2]
[388496463,1759217433624,-500.0,0.00017267,2]
[388496464,1759217433633,-500.0,0.00017267,2]
[388496465,1759217433644,-500.0,0.00017267,2]
[388496466,1759217433654,-500.0,0.00017267,2]
[388496467,1759217433666,-500.0,0.00017267,2]
[388496468,1759217433676,-500.0,0.00017267,2]
[388496469,1759217433686,-500.0,0.00017267,2]
[388496470,1759217433696,-500.0,0.00017267,2]
[388496471,1759217433708,-500.0,0.00017267,2]
[388496472,1759217433718,-500.0,0.00017267,2]
[388496473,1759217434557,-500.0,0.00017267,2]
[388496474,1759217434567,-500.0,0.00017267,2]
[388496475,1759217434577,-500.0,0.00017267,2]
[388496476,1759217434586,-500.0,0.00017267,2]
[388496477,1759217434596,-500.0,0.00017267,2]
[388496478,1759217434605,-500.0,0.00017267,2]
[388496479,1759217434615,-500.0,0.00017267,2]
[388496480,1759217434624,-500.0,0.00017267,2]
[388496481,1759217434634,-650.0,0.00017267,2]
[388496482,1759217434644,-500.0,0.00017267,2]
[388496483,1759217434654,-500.0,0.00017267,2]
[388496484,1759217434664,-150.0,0.00017268,2]
[388496485,1759217434674,-150.0,0.00017268,2]
[388496486,1759217434683,-150.0,0.00017268,2]
[388496487,1759217434693,-150.0,0.00017268,2]
[388496488,1759217434702,-150.0,0.00017268,2]
[388496489,1759217434712,-150.0,0.00017268,2]
[388496490,1759217434722,-150.0,0.00017268,2]
[388496491,1759217434731,-55.16793306,0.00017268,2]
[388496492,1759217436840,-94.83206694,0.00017268,2]
[388496493,1759217436850,-151.0,0.00017297,2]
[388496494,1759217436860,-1500.0,0.000173,2]
[388496495,1759217436869,-150.0,0.00017327,2]
[388496496,1759217436879,-150.0,0.00017367,2]
[388496497,1759217436888,-200.0,0.00017386,2]
[388496498,1759217436897,-150.0,0.00017386,2]
[388496499,1759217436907,-372.74,0.00017386,2]
[388496500,1759217436916,-150.0,0.00017416,2]
[388496501,1759217436925,-150.0,0.00017466,2]
[388496502,1759217436935,-150.0,0.00017466,2]
[388496503,1759217436944,-150.0,0.00017466,2]
[388496504,1759217436953,-150.0,0.00017466,2]
[388496505,1759217436963,-150.0,0.00017506,2]
[388496506,1759217436972,-150.0,0.00017506,2]
[388496507,1759217436981,-150.0,0.00017565,2]
[388496508,1759217436990,-150.0,0.00017565,2]
[388496509,1759217437003,-175.45,0.00017578,2]
[388496510,1759217437013,-150.0,0.00017612,2]
[388496511,1759217437022,-150.0,0.00017612,2]
[388496512,1759217437033,-150.0,0.00017612,2]
[388496513,1759217437042,-1000.0,0.00017615,2]
[388496514,1759217437052,-1000.0,0.00017615,2]
[388496515,1759217437062,-150.0,0.00017665,2]
[388496516,1759217437071,-150.0,0.00017665,2]
[388496517,1759217437080,-150.0,0.00017665,2]
[388496518,1759217437090,-150.0,0.00017665,2]
[388496519,1759217437099,-17283.70809692,0.0001768,2]
[388496520,1759217437108,-474.52590314,0.00017682,2]
[388496521,1759217437118,-150.0,0.00017684,2]
[388496522,1759217437128,-553.50853214,0.00017686,2]
[388496523,1759217437138,-535.48379155,0.00017688,2]
[388496524,1759217437151,-470.6333384,0.00017688,2]
[388496525,1759217437160,-17283.70809686,0.00017691,2]
[388496526,1759217437169,-17283.70809686,0.00017702,2]
[388496527,1759217437179,-857.87,0.00017703,2]
[388496528,1759217437189,-17283.70809686,0.00017713,2]
[388496529,1759217437198,-17283.70809686,0.00017724,2]
[388496530,1759217437207,-17283.70809686,0.00017736,2]
[388496531,1759217437217,-857.87,0.00017737,2]
[388496532,1759217437227,-5731.66514672,0.00017747,2]
[388496533,1759217437238,-11552.04295014,0.00017747,2]
[388496534,1759217437248,-423.6424,0.00017753,2]
[388496535,1759217437257,-17283.70809686,0.00017758,2]
[388496536,1759217437267,-150.0,0.00017764,2]
[388496537,1759217437277,-17283.70809686,0.00017769,2]
[388496538,1759217437286,-564.66045614,0.00017769,2]
[388496539,1759217437299,-293.20954386,0.00017769,2]
[388496540,1759217437308,-857.87,0.00017771,2]
[388496541,1759217437318,-500.30017511,0.00017773,2]
[388496542,1759217437327,-500.65316922,0.00017773,2]
[388496543,1759217437336,-207.14885183,0.00017773,2]
[388496544,1759217437346,-868.63,0.00017776,2]
[388496545,1759217437355,-857.87,0.00017776,2]
[388496546,1759217437365,-5000.0,0.0001778,2]
[388496547,1759217437374,-161.50922694,0.0001778,2]
[388496548,1759217437383,-168.08669394,0.0001778,2]
[388496549,1759217437392,-1182.27885867,0.0001778,2]
[388496550,1759217437402,-3510.44348043,0.0001778,2]
[388496551,1759217437416,-10662.5,0.0001778,2]
[388496552,1759217437428,-422.52576524,0.0001778,2]
[388496553,1759217437458,-285.30131371,0.00017644,2]
[388496554,1759217437469,-437.74913287,0.00017644,2]
[388496555,1759217437479,-448.38917658,0.0001778,2]
[388496556,1759217437490,-570.29285079,0.0001778,2]
[388496557,1759217437502,-1669.55682382,0.0001778,2]
[388496558,1759217437511,-1914.27340836,0.0001778,2]
[388496559,1759217437520,-210.1293016,0.0001778,2]
[388496560,1759217437529,-222.8466569,0.0001778,2]
[388496561,1759217437539,-22686.80153018,0.00017784,2]
[388496562,1759217437548,-11089.9325349,0.00017786,2]
[388496563,1759217437560,-2100.0,0.00017786,2]
[388496564,1759217437572,-9496.86899528,0.00017786,2]
[388496565,1759217437581,-13513.92813472,0.00017788,2]
[388496566,1759217437593,-2880.0,0.00017788,2]
[388496567,1759217437604,-1999.999995,0.00017788,2]
[388496568,1759217437615,-4292.87340046,0.00017788,2]
[388496569,1759217437626,-1707.12659954,0.00017791,2]
[388496570,1759217437636,-474.30464112,0.00017791,2]
[388496571,1759217437648,-15821.806,0.00017791,2]
[388496580,1759217438255,-314.30341233,0.00017757,2]
[388496581,1759217438267,-312.35299961,0.00017757,2]
[388496582,1759217438277,-500.0,0.00017757,2]
[388496583,1759217438287,-500.0,0.00017757,2]
[388496584,1759217438297,-436.34358805,0.00017757,2]
[388496585,1759217438309,-186.34071913,0.00017757,2]
[388496586,1759217438319,-500.0,0.00017757,2]
[388496587,1759217438332,-158.1366835,0.00017757,2]
[388496588,1759217438344,-341.8633165,0.00017757,2]
[388496589,1759217438355,-229.8694934,0.00017757,2]
[388496590,1759217438367,-270.1305066,0.00017757,2]
[388496591,1759217438376,-579.0648233,0.00017757,2]
[388496592,1759217438386,-313.6146701,0.00017757,2]
[388496593,1759217438397,-186.3853299,0.00017757,2]
[388496594,1759217438407,-4683.56428952,0.00017791,2]
[388496595,1759217438417,-416.942896,0.00017791,2]
[388496596,1759217438426,-416.942896,0.00017791,2]
[388496597,1759217438436,-416.942896,0.00017791,2]
[388496598,1759217438446,-416.942896,0.00017791,2]
[388496599,1759217438455,-151.0,0.00017791,2]
[388496600,1759217438465,-151.575851,0.00017791,2]
[388496601,1759217438474,-151.0,0.00017791,2]
[388496602,1759217438484,-151.0,0.00017791,2]
[388496603,1759217438494,-151.0,0.00017791,2]
[388496604,1759217438503,-565.382696,0.00017791,2]
[388496605,1759217438512,-161.631566,0.00017791,2]
[388496606,1759217438521,-565.382696,0.00017791,2]
[388496607,1759217438531,-565.382696,0.00017791,2]
[388496608,1759217438541,-565.382696,0.00017791,2]
[388496609,1759217438550,-11283.54059558,0.00017793,2]
[388496610,1759217438562,-11403.2609346,0.00017793,2]
[388496611,1759217438571,-11396.7390654,0.00017795,2]
[388496612,1759217438582,-11290.06246478,0.00017795,2]
[388496613,1759217438592,-22686.80153018,0.00017798,2]
[388496614,1759217438602,-22686.80153018,0.000178,2]
[388496615,1759217438613,-273.57999735,0.00017824,2]
[388496616,1759217438622,-2954.569,0.00017855,2]
[388496617,1759217438631,-1306.0,0.00017855,2]
[388496618,1759217438641,-154.808533,0.00017857,2]
[388496619,1759217438650,-666.0,0.00017861,2]
[388496620,1759217438660,-33507.6506154,0.00017862,2]
[388496621,1759217438670,-389.85795326,0.00017862,2]
[388496622,1759217438679,-167.127983,0.00017863,2]
[388496623,1759217438688,-151.0,0.00017863,2]
[388496624,1759217438698,-155.447139,0.00017863,2]
[388496625,1759217438708,-416.942896,0.00017863,2]
[388496626,1759217438718,-416.942896,0.00017863,2]
[388496627,1759217438729,-416.942896,0.00017863,2]
[388496628,1759217438738,-416.942896,0.00017863,2]
[388496629,1759217438748,-151.0,0.00017863,2]
[388496630,1759217438758,-151.0,0.00017863,2]
[388496631,1759217438768,-151.0,0.00017863,2]
[388496632,1759217438778,-151.0,0.00017863,2]
[388496633,1759217438788,-565.382696,0.00017863,2]
[388496634,1759217438798,-565.382696,0.00017863,2]
[388496635,1759217438808,-565.382696,0.00017863,2]
[388496636,1759217438818,-565.382696,0.00017863,2]
[388496637,1759217438828,-166.61081421,0.00017863,2]
[388496638,1759217438838,-266.51343921,0.00017863,2]
[388496639,1759217438848,-151.47861609,0.00017863,2]
[388496640,1759217438860,-150.0,0.00017863,2]
[388496641,1759217438871,-179.87016847,0.00017863,2]
[388496642,1759217438881,-256.02797826,0.00017863,2]
[388496643,1759217438891,-236.7,0.00017863,2]
[388496644,1759217438900,-298.17328652,0.00017863,2]
[388496645,1759217438910,-289.68908603,0.00017863,2]
[388496646,1759217438920,-268.77777794,0.00017863,2]
[388496647,1759217438929,-230.17256571,0.00017863,2]
[388496648,1759217438939,-247.47544391,0.00017863,2]
[388496649,1759217438949,-26332.0,0.00017863,2]
[388496650,1759217438959,-2015.0,0.00017863,2]
[388496651,1759217438968,-32569.48474379,0.0001787,2]
[388496652,1759217438978,-531.58068788,0.0001787,2]
[388496653,1759217438988,-500.0,0.00017873,2]
[388496654,1759217439001,-500.0,0.00017873,2]
[388496655,1759217439011,-500.0,0.00017873,2]
[388496656,1759217439020,-500.0,0.00017873,2]
[388496657,1759217439030,-500.0,0.00017873,2]
[388496658,1759217439040,-500.0,0.00017873,2]
[388496659,1759217439049,-500.11715996,0.00017873,2]
[388496660,1759217439063,-501.25955265,0.00017873,2]
[388496661,1759217439073,-500.0,0.00017873,2]
[388496662,1759217439083,-345.36130223,0.00017873,2]
[388496663,1759217439092,-500.36692388,0.00017873,2]
[388496664,1759217439102,-502.48583113,0.00017873,2]
[388496665,1759217439111,-500.0,0.00017873,2]
[388496666,1759217439120,-170.48320873,0.00017873,2]
[388496667,1759217439130,-500.0,0.00017873,2]
[388496668,1759217439139,-500.0,0.00017873,2]
[388496669,1759217439149,-500.0,0.00017873,2]
[388496670,1759217439159,-500.0,0.00017873,2]
[388496671,1759217439168,-500.0,0.00017873,2]
[388496672,1759217439177,-500.0,0.00017873,2]
[388496673,1759217439188,-500.0,0.00017873,2]
[388496674,1759217439198,-500.0,0.00017873,2]
[388496675,1759217439207,-500.0,0.00017873,2]
[388496676,1759217439216,-641.76988814,0.00017873,2]
[388496677,1759217439226,-500.0,0.00017873,2]
[388496678,1759217439236,-500.0,0.00017873,2]
[388496679,1759217439245,-500.0,0.00017873,2]
[388496680,1759217439255,-500.0,0.00017873,2]
[388496681,1759217439265,-500.0,0.00017873,2]
[388496682,1759217439275,-151.44480749,0.00017873,2]
[388496683,1759217439284,-150.0,0.00017873,2]
[388496684,1759217439293,-500.0,0.00017873,2]
[388496685,1759217439303,-151.85341639,0.00017873,2]
[388496686,1759217439312,-150.44428984,0.00017873,2]
[388496687,1759217439322,-500.0,0.00017873,2]
[388496688,1759217439331,-150.0,0.00017873,2]
[388496689,1759217439340,-500.0,0.00017873,2]
[388496690,1759217439350,-500.0,0.00017873,2]
[388496691,1759217439360,-500.0,0.00017873,2]
[388496692,1759217439369,-1818.0,0.00017873,2]
[388496693,1759217439378,-151.46425124,0.00017873,2]
[388496694,1759217439387,-150.0,0.00017873,2]
[388496695,1759217439397,-150.78831798,0.00017873,2]
[388496696,1759217439406,-150.60953712,0.00017873,2]
[388496697,1759217439415,-150.0,0.00017873,2]
[388496698,1759217439424,-151.97366281,0.00017873,2]
[388496699,1759217439434,-500.0,0.00017873,2]
[388496700,1759217439443,-150.0,0.00017873,2]
[388496701,1759217439453,-150.0,0.00017873,2]
[388496702,1759217439462,-150.0,0.00017873,2]
[388496703,1759217439471,-500.0,0.00017873,2]
[388496704,1759217439481,-150.0,0.00017873,2]
[388496705,1759217439490,-500.0,0.00017873,2]
[388496706,1759217439499,-150.0,0.00017873,2]
[388496707,1759217439508,-1055.219,0.00017874,2]
[388496708,1759217439518,-1177.0301753,0.00017875,2]
[388496709,1759217439527,-108278.3327274,0.00017879,2]
[388496710,1759217439537,-164.6938781,0.00017879,2]
[388496711,1759217439547,-151.832029,0.00017879,2]
[388496712,1759217439556,-151.832029,0.00017879,2]
[388496713,1759217439565,-151.832029,0.00017879,2]
[388496714,1759217439575,-151.832029,0.00017879,2]
[388496715,1759217439584,-151.0,0.00017879,2]
[388496716,1759217439594,-151.0,0.00017879,2]
[388496717,1759217439603,-151.0,0.00017879,2]
[388496718,1759217439612,-151.0,0.00017879,2]
[388496719,1759217439621,-151.0,0.00017879,2]
[388496720,1759217439631,-199.406133,0.00017879,2]
[388496724,1759217439640,-199.406133,0.00017879,2]
[388496725,1759217439649,-199.406133,0.00017879,2]
[388496727,1759217439659,-199.406133,0.00017879,2]
[388496730,1759217439668,-151.0,0.00017879,2]
[388496732,1759217439677,-151.0,0.00017879,2]
[388496734,1759217439687,-151.0,0.00017879,2]
[388496736,1759217439697,-245.75114,0.00017879,2]
[388496737,1759217439706,-150.0,0.00017879,2]
[388496738,1759217439715,-151.0,0.00017879,2]
[388496739,1759217439724,-416.942896,0.00017879,2]
[388496740,1759217439733,-416.942896,0.00017879,2]
[388496741,1759217439742,-416.942896,0.00017879,2]
[388496742,1759217439752,-416.942896,0.00017879,2]
[388496743,1759217439761,-151.0,0.00017879,2]
[388496744,1759217439770,-151.0,0.00017879,2]
[388496745,1759217439779,-151.0,0.00017879,2]
[388496746,1759217439789,-151.0,0.00017879,2]
[388496747,1759217439798,-565.382696,0.00017879,2]
[388496748,1759217439807,-565.382696,0.00017879,2]
[388496749,1759217439816,-565.382696,0.00017879,2]
[388496750,1759217439825,-565.382696,0.00017879,2]
[388496751,1759217439834,-1259550.10574095,0.00017879,2]
[388496752,1759217439844,-551.0,0.00017879,2]
[388496753,1759217439854,-3369085.97677317,0.0001788,2]
[388496754,1759217439863,-3390.0790464,0.0001788,2]
[388496755,1759217439873,-161.12865879,0.0001788,2]
[388496756,1759217439885,-151.0,0.0001788,2]
[388496757,1759217439896,-151.0,0.0001788,2]
[388496758,1759217439906,-151.0,0.0001788,2]